Workbook

Sheet Протокол ШЭ ВОШ по предмету
A1: № | B1: Код ОО | C1: Наименование ОО | D1: Фамилия | E1: Пол | F1: Участник с ОВЗ (да/нет) | G1: Класс обучения | H1: Класс участия | I1: Балл | J1: Добавлено баллов по итогам апелляций | K1: Итоговый балл | L1: Максимальный балл | M1: Статус | N1: Призёр республиканского этапа прошлого года | O1: ФИО учителя | P1: Место работы учителя
B2: 520201 | C2: Муниципальное бюджетное общеобразовательное учреждение «Лицей №1» Чистопольского муниципального района Республики Татарстан | D2: Цыганов | E2: М | F2: нет | G2: 7 | H2: 7 | I2: 53.5 | K2: =SUM(I2:J2) -> 53.5 | L2: 95 | M2: Победитель | N2: нет | O2: Голицина Наталья Михайловна | P2: Муниципальное бюджетное общеобразовательное учреждение "Лицей №1" г.Чистополь Республики Татарстан
B3: 520201 | C3: Муниципальное бюджетное общеобразовательное учреждение «Лицей №1» Чистопольского муниципального района Республики Татарстан | D3: Идрисов | E3: М | F3: нет | G3: 7 | H3: 7 | I3: 48.25 | K3: =SUM(I3:J3) -> 48.25 | L3: 95 | M3: Призёр | N3: нет | O3: Голицина Наталья Михайловна | P3: Муниципальное бюджетное общеобразовательное учреждение "Лицей №1" г.Чистополь Республики Татарстан
B4: 520201 | C4: Муниципальное бюджетное общеобразовательное учреждение «Лицей №1» Чистопольского муниципального района Республики Татарстан | D4: Ганин | E4: М | F4: нет | G4: 7 | H4: 7 | I4: 47.5 | K4: =SUM(I4:J4) -> 47.5 | L4: 95 | M4: Призёр | N4: нет | O4: Голицина Наталья Михайловна | P4: Муниципальное бюджетное общеобразовательное учреждение "Лицей №1" г.Чистополь Республики Татарстан
B5: 520201 | C5: Муниципальное бюджетное общеобразовательное учреждение «Лицей №1» Чистопольского муниципального района Республики Татарстан | D5: Сидоров | E5: М | F5: нет | G5: 7 | H5: 7 | I5: 24.75 | K5: =SUM(I5:J5) -> 24.75 | L5: 95 | M5: Участник | N5: нет | O5: Голицина Наталья Михайловна | P5: Муниципальное бюджетное общеобразовательное учреждение "Лицей №1" г.Чистополь Республики Татарстан
B6: 520001 | C6: Муниципальное бюджетное общеобразовательное учреждение «Гимназия №1» Чистопольского муниципального района Республики Татарстан | D6: Никифоров | E6: М | F6: нет | G6: 7 | H6: 7 | I6: 22.5 | K6: =SUM(I6:J6) -> 22.5 | L6: 95 | M6: Участник | N6: нет | O6: Шанина Рушана Асхатовна | P6: Муниципальное бюджетное общеобразовательное учреждение "Гимназия 1" гЧистополь Республика Татарстан
B7: 520225 | C7: Муниципальное бюджетное общеобразовательное учреждение «Чистопольско-Высельская средняя общеобразовательная школа» Чистопольского муниципального района Республики Татарстан | D7: Кудрявцев | E7: М | F7: нет | G7: 7 | H7: 7 | I7: 22 | K7: =SUM(I7:J7) -> 22 | L7: 95 | M7: Участник | N7: нет | O7: Игонин Евгений Александрович | P7: Муниципальное бюджетное общеобразовательное учреждение "Чистопольско-Высельская СОШ" г.Чистополь Республики Татарстан
B8: 520201 | C8: Муниципальное бюджетное общеобразовательное учреждение «Лицей №1» Чистопольского муниципального района Республики Татарстан | D8: Федоров | E8: М | F8: нет | G8: 7 | H8: 7 | I8: 21 | K8: =SUM(I8:J8) -> 21 | L8: 95 | M8: Участник | N8: нет | O8: Голицина Наталья Михайловна | P8: Муниципальное бюджетное общеобразовательное учреждение "Лицей №1" г.Чистополь Республики Татарстан
B9: 520227 | C9: Муниципальное бюджетное общеобразовательное учреждение «Юлдузская средняя общеобразовательная школа» Чистопольского муниципального района РТ | D9: Маврина | E9: Ж | F9: нет | G9: 7 | H9: 7 | I9: 21 | K9: =SUM(I9:J9) -> 21 | L9: 95 | M9: Участник | N9: нет | O9: Валиева Резеда Накиповна | P9: Муниципальное бюджетное общеобразовательное учреждение "Юлдузская средняя общеобразовательная школа" Чистопольского муницпального района Республики Татарстан
B10: 520205 | C10: Муниципальное бюджетное общеобразовательное учреждение «Средняя общеобразовательная школа №5» Чистопольского муниципального района Республики Татарстан | D10: Гумеров | E10: М | F10: нет | G10: 7 | H10: 7 | I10: 20.5 | K10: =SUM(I10:J10) -> 20.5 | L10: 95 | M10: Участник | N10: нет | O10: Гайфуллин Марат Сагирович | P10: Муниципальное бюджетное общеобразовательное учреждение "СОШ №5"" г.Чистополь Республики Татарстан
B11: 520227 | C11: Муниципальное бюджетное общеобразовательное учреждение «Юлдузская средняя общеобразовательная школа» Чистопольского муниципального района РТ | D11: Фролова | E11: Ж | F11: нет | G11: 7 | H11: 7 | I11: 18.5 | K11: =SUM(I11:J11) -> 18.5 | L11: 95 | M11: Участник | N11: нет | O11: Валиева Резеда Накиповна | P11: Муниципальное бюджетное общеобразовательное учреждение "Юлдузская средняя общеобразовательная школа" Чистопольского муницпального района Республики Татарстан
B12: 520001 | C12: Муниципальное бюджетное общеобразовательное учреждение «Гимназия №1» Чистопольского муниципального района Республики Татарстан | D12: Урманчеев | E12: М | F12: нет | G12: 7 | H12: 7 | I12: 18 | K12: =SUM(I12:J12) -> 18 | L12: 95 | M12: Участник | N12: нет | O12: Шанина Рушана Асхатовна | P12: Муниципальное бюджетное общеобразовательное учреждение "Гимназия 1" гЧистополь Республика Татарстан
B13: 520001 | C13: Муниципальное бюджетное общеобразовательное учреждение «Гимназия №1» Чистопольского муниципального района Республики Татарстан | D13: Битнер | E13: Ж | F13: нет | G13: 7 | H13: 7 | I13: 17 | K13: =SUM(I13:J13) -> 17 | L13: 95 | M13: Участник | N13: нет | O13: Шанина Рушана Асхатовна | P13: Муниципальное бюджетное общеобразовательное учреждение "Гимназия 1" гЧистополь Республика Татарстан
B14: 520001 | C14: Муниципальное бюджетное общеобразовательное учреждение «Гимназия №1» Чистопольского муниципального района Республики Татарстан | D14: Дедова | E14: Ж | F14: нет | G14: 7 | H14: 7 | I14: 16.5 | K14: =SUM(I14:J14) -> 16.5 | L14: 95 | M14: Участник | N14: нет | O14: Шанина Рушана Асхатовна | P14: Муниципальное бюджетное общеобразовательное учреждение "Гимназия 1" гЧистополь Республика Татарстан
B15: 520202 | C15: Муниципальное бюджетное общеобразовательное учреждение «Лицей № 2» Чистопольского муниципального района Республики Татарстан | D15: Парамонов | E15: М | F15: нет | G15: 7 | H15: 7 | I15: 15 | K15: =SUM(I15:J15) -> 15 | L15: 95 | M15: Участник | N15: нет | O15: Шанина Рушана Асхатовна | P15: Муниципальное бюджетное общеобразовательное учреждение «Лицей № 2» Чистопольского муниципального района Республики Татарстан
B16: 520101 | C16: Муниципальное бюджетное общеобразовательное учреждение «Средняя общеобразовательная школа №1» Чистопольского муниципального района Республики Татарстан | D16: Фатхудинов | E16: М | F16: нет | G16: 7 | H16: 7 | I16: 13.5 | K16: =SUM(I16:J16) -> 13.5 | L16: 95 | M16: Участник | N16: нет | O16: Валеева Елена Алексеевна | P16: Муниципальное бюджетное общеобразовательное учреждение «Средняя общеобразовательная школа №1» Чистопольского муниципального района Республики Татарстан
B17: 520213 | C17: Муниципальное бюджетное общеобразовательное учреждение «Верхнекондратинская основная общеобразовательная школа» Чистопольского муниципального района Республики Татарстан | D17: Земсков | E17: М | F17: нет | G17: 7 | H17: 7 | I17: 13 | K17: =SUM(I17:J17) -> 13 | L17: 95 | M17: Участник | N17: нет | O17: Нухратова Наталья ивановна | P17: Муниципальное бюджетное общеобразовательное учреждение "Верхнекондратинсая ООШ" Чистопольского района Республики Татарстан
B18: 520001 | C18: Муниципальное бюджетное общеобразовательное учреждение «Гимназия №1» Чистопольского муниципального района Республики Татарстан | D18: Шарифуллина | E18: Ж | F18: нет | G18: 7 | H18: 7 | I18: 10.5 | K18: =SUM(I18:J18) -> 10.5 | L18: 95 | M18: Участник | N18: нет | O18: Шанина Рушана Асхатовна | P18: Муниципальное бюджетное общеобразовательное учреждение "Гимназия 1" гЧистополь Республика Татарстан
B19: 520209 | C19: Государственное бюджетное общеобразовательное учреждение "Чистопольская кадетская школа-интернат имени Героя Советского Союза Кузьмина Сергея Евдокимовича" | D19: Кабирова | E19: Ж | F19: нет | G19: 7 | H19: 7 | I19: 7.5 | K19: =SUM(I19:J19) -> 7.5 | L19: 95 | M19: Участник | N19: нет | O19: Исаичева Мария Александровна | P19: Государственное бюджетное общеобразовательное учреждение "Чистопольская кадетская школа-интернат имени Героя Советского Союза Кузьмина Сергея Евдокимовича"
B20: 520201 | C20: Муниципальное бюджетное общеобразовательное учреждение «Лицей №1» Чистопольского муниципального района Республики Татарстан | D20: Хисамиров | E20: М | F20: нет | G20: 8 | H20: 8 | I20: 62 | K20: =SUM(I20:J20) -> 62 | L20: 109 | M20: Победитель | N20: нет | O20: Хабибулина Эльвира Асгатовна | P20: Муниципальное бюджетное общеобразовательное учреждение "Лицей №1" г.Чистополь Республики Татарстан
B21: 520201 | C21: Муниципальное бюджетное общеобразовательное учреждение «Лицей №1» Чистопольского муниципального района Республики Татарстан | D21: Нуриахметов | E21: М | F21: нет | G21: 8 | H21: 8 | I21: 55 | K21: =SUM(I21:J21) -> 55 | L21: 109 | M21: Призёр | N21: нет | O21: Хабибулина Эльвира Асгатовна | P21: Муниципальное бюджетное общеобразовательное учреждение "Лицей №1" г.Чистополь Республики Татарстан
B22: 520201 | C22: Муниципальное бюджетное общеобразовательное учреждение «Лицей №1» Чистопольского муниципального района Республики Татарстан | D22: Шакиров | E22: М | F22: нет | G22: 8 | H22: 8 | I22: 54.5 | K22: =SUM(I22:J22) -> 54.5 | L22: 109 | M22: Призёр | N22: нет | O22: Хабибулина Эльвира Асгатовна | P22: Муниципальное бюджетное общеобразовательное учреждение "Лицей №1" г.Чистополь Республики Татарстан
B23: 520201 | C23: Муниципальное бюджетное общеобразовательное учреждение «Лицей №1» Чистопольского муниципального района Республики Татарстан | D23: Шарангин | E23: М | F23: нет | G23: 8 | H23: 8 | I23: 54.5 | K23: =SUM(I23:J23) -> 54.5 | L23: 109 | M23: Призёр | N23: нет | O23: Хабибулина Эльвира Асгатовна | P23: Муниципальное бюджетное общеобразовательное учреждение "Лицей №1" г.Чистополь Республики Татарстан
B24: 520201 | C24: Муниципальное бюджетное общеобразовательное учреждение «Лицей №1» Чистопольского муниципального района Республики Татарстан | D24: Яруллин | E24: М | F24: нет | G24: 8 | H24: 8 | I24: 35.5 | K24: =SUM(I24:J24) -> 35.5 | L24: 109 | M24: Участник | N24: нет | O24: Хабибулина Эльвира Асгатовна | P24: Муниципальное бюджетное общеобразовательное учреждение "Лицей №1" г.Чистополь Республики Татарстан
B25: 520201 | C25: Муниципальное бюджетное общеобразовательное учреждение «Лицей №1» Чистопольского муниципального района Республики Татарстан | D25: Марков | E25: М | F25: нет | G25: 8 | H25: 8 | I25: 28 | K25: =SUM(I25:J25) -> 28 | L25: 109 | M25: Участник | N25: нет | O25: Хабибулина Эльвира Асгатовна | P25: Муниципальное бюджетное общеобразовательное учреждение "Лицей №1" г.Чистополь Республики Татарстан
B26: 520213 | C26: Муниципальное бюджетное общеобразовательное учреждение «Верхнекондратинская основная общеобразовательная школа» Чистопольского муниципального района Республики Татарстан | D26: Краснова | E26: Ж | F26: нет | G26: 8 | H26: 8 | I26: 24 | K26: =SUM(I26:J26) -> 24 | L26: 109 | M26: Участник | N26: нет | O26: Нухратова Наталья ивановна | P26: Муниципальное бюджетное общеобразовательное учреждение "Верхнекондратинсая ООШ" Чистопольского района Республики Татарстан
B27: 520201 | C27: Муниципальное бюджетное общеобразовательное учреждение «Лицей №1» Чистопольского муниципального района Республики Татарстан | D27: Матвеев | E27: М | F27: нет | G27: 8 | H27: 8 | I27: 23 | K27: =SUM(I27:J27) -> 23 | L27: 109 | M27: Участник | N27: нет | O27: Хабибулина Эльвира Асгатовна | P27: Муниципальное бюджетное общеобразовательное учреждение "Лицей №1" г.Чистополь Республики Татарстан
B28: 520001 | C28: Муниципальное бюджетное общеобразовательное учреждение «Гимназия №1» Чистопольского муниципального района Республики Татарстан | D28: Сударкина | E28: Ж | F28: нет | G28: 8 | H28: 8 | I28: 19.5 | K28: =SUM(I28:J28) -> 19.5 | L28: 109 | M28: Участник | N28: нет | O28: Шанина Рушана Асхатовна | P28: Муниципальное бюджетное общеобразовательное учреждение "Гимназия 1" гЧистополь Республика Татарстан
B29: 520001 | C29: Муниципальное бюджетное общеобразовательное учреждение «Гимназия №1» Чистопольского муниципального района Республики Татарстан | D29: Мартынов | E29: М | F29: нет | G29: 8 | H29: 8 | I29: 19.5 | K29: =SUM(I29:J29) -> 19.5 | L29: 109 | M29: Участник | N29: нет | O29: Шанина Рушана Асхатовна | P29: Муниципальное бюджетное общеобразовательное учреждение "Гимназия 1" гЧистополь Республика Татарстан
B30: 520001 | C30: Муниципальное бюджетное общеобразовательное учреждение «Гимназия №1» Чистопольского муниципального района Республики Татарстан | D30: Исхакова | E30: Ж | F30: нет | G30: 8 | H30: 8 | I30: 16.5 | K30: =SUM(I30:J30) -> 16.5 | L30: 109 | M30: Участник | N30: нет | O30: Шанина Рушана Асхатовна | P30: Муниципальное бюджетное общеобразовательное учреждение "Гимназия 1" гЧистополь Республика Татарстан
B31: 520103 | C31: Муниципальное бюджетное общеобразовательное учреждение «Гимназия №3» Чистопольского муниципального района Республики Татарстан | D31: Гаязова | E31: Ж | F31: нет | G31: 8 | H31: 8 | I31: 16 | K31: =SUM(I31:J31) -> 16 | L31: 109 | M31: Участник | N31: нет | O31: Петрова Юлия Николаевна | P31: Муниципальное бюджетное общеобразовательное учреждение "Гимназия №3" Чистопольского муниципального района Республики Татарстан
B32: 520205 | C32: Муниципальное бюджетное общеобразовательное учреждение «Средняя общеобразовательная школа №5» Чистопольского муниципального района Республики Татарстан | D32: Конова | E32: Ж | F32: нет | G32: 8 | H32: 8 | I32: 13 | K32: =SUM(I32:J32) -> 13 | L32: 109 | M32: Участник | N32: нет | O32: Гайфуллин Марат Сагирович | P32: Муниципальное бюджетное общеобразовательное учреждение "СОШ №5"" г.Чистополь Республики Татарстан
B33: 520001 | C33: Муниципальное бюджетное общеобразовательное учреждение «Гимназия №1» Чистопольского муниципального района Республики Татарстан | D33: Шурупова | E33: Ж | F33: нет | G33: 8 | H33: 8 | I33: 13 | K33: =SUM(I33:J33) -> 13 | L33: 109 | M33: Участник | N33: нет | O33: Шанина Рушана Асхатовна | P33: Муниципальное бюджетное общеобразовательное учреждение "Гимназия 1" гЧистополь Республика Татарстан
B34: 520227 | C34: Муниципальное бюджетное общеобразовательное учреждение «Юлдузская средняя общеобразовательная школа» Чистопольского муниципального района РТ | D34: Киямов | E34: М | F34: нет | G34: 8 | H34: 8 | I34: 13 | K34: =SUM(I34:J34) -> 13 | L34: 109 | M34: Участник | N34: нет | O34: Валиева Резеда Накиповна | P34: Муниципальное бюджетное общеобразовательное учреждение "Юлдузская средняя общеобразовательная школа" Чистопольского муницпального района Республики Татарстан
B35: 520213 | C35: Муниципальное бюджетное общеобразовательное учреждение «Верхнекондратинская основная общеобразовательная школа» Чистопольского муниципального района Республики Татарстан | D35: Фролкина | E35: Ж | F35: нет | G35: 8 | H35: 8 | I35: 11.5 | K35: =SUM(I35:J35) -> 11.5 | L35: 109 | M35: Участник | N35: нет | O35: Нухратова Наталья Ивановна | P35: Муниципальное бюджетное общеобразовательное учреждение "Верхнекондратинсая ООШ" Чистопольского района Республики Татарстан
B36: 520001 | C36: Муниципальное бюджетное общеобразовательное учреждение «Гимназия №1» Чистопольского муниципального района Республики Татарстан | D36: Иванов | E36: М | F36: нет | G36: 8 | H36: 8 | I36: 11 | K36: =SUM(I36:J36) -> 11 | L36: 109 | M36: Участник | N36: нет | O36: Шанина Рушана Асхатовна | P36: Муниципальное бюджетное общеобразовательное учреждение "Гимназия 1" гЧистополь Республика Татарстан
B37: 520217 | C37: Муниципальное бюджетное общеобразовательное учреждение «Лучовская средняя общеобразовательная школа» Чистопольского муниципального района Республики Татарстан | D37: Вафина | E37: Ж | F37: нет | G37: 8 | H37: 8 | I37: 4.5 | K37: =SUM(I37:J37) -> 4.5 | L37: 109 | M37: Участник | N37: нет | O37: Штыкова Светлана Анатольевна | P37: Муниципальное бюджетное общеобразовательное учреждение "Лучовская СОШ" Чистопольского муниципального района Республики Татарстан
B38: 520201 | C38: Муниципальное бюджетное общеобразовательное учреждение «Лицей №1» Чистопольского муниципального района Республики Татарстан | D38: Сибгатуллин | E38: М | F38: нет | G38: 9 | H38: 9 | I38: 80 | K38: =SUM(I38:J38) -> 80 | L38: 127 | M38: Победитель | N38: да | O38: Хабибулина Эльвира Асгатовна | P38: Муниципальное бюджетное общеобразовательное учреждение "Лицей №1" г.Чистополь Республики Татарстан
B39: 520201 | C39: Муниципальное бюджетное общеобразовательное учреждение «Лицей №1» Чистопольского муниципального района Республики Татарстан | D39: Фролов | E39: М | F39: нет | G39: 9 | H39: 9 | I39: 70 | K39: =SUM(I39:J39) -> 70 | L39: 127 | M39: Призёр | N39: нет | O39: Хабибулина Эльвира Асгатовна | P39: Муниципальное бюджетное общеобразовательное учреждение "Лицей №1" г.Чистополь Республики Татарстан
B40: 520205 | C40: Муниципальное бюджетное общеобразовательное учреждение «Средняя общеобразовательная школа №5» Чистопольского муниципального района Республики Татарстан | D40: Цигвинцева | E40: Ж | F40: нет | G40: 9 | H40: 9 | I40: 26 | K40: =SUM(I40:J40) -> 26 | L40: 127 | M40: Участник | N40: нет | O40: Гайфуллин Марат Сагирович | P40: Муниципальное бюджетное общеобразовательное учреждение "СОШ №5"" г.Чистополь Республики Татарстан
B41: 520001 | C41: Муниципальное бюджетное общеобразовательное учреждение «Гимназия №1» Чистопольского муниципального района Республики Татарстан | D41: Давлетшин | E41: М | F41: нет | G41: 9 | H41: 9 | I41: 23 | K41: =SUM(I41:J41) -> 23 | L41: 127 | M41: Участник | N41: нет | O41: Шанина Рушана Асхатовна | P41: Муниципальное бюджетное общеобразовательное учреждение "Гимназия 1" гЧистополь Республика Татарстан
B42: 520001 | C42: Муниципальное бюджетное общеобразовательное учреждение «Гимназия №1» Чистопольского муниципального района Республики Татарстан | D42: Лисин | E42: М | F42: нет | G42: 9 | H42: 9 | I42: 22.5 | K42: =SUM(I42:J42) -> 22.5 | L42: 127 | M42: Участник | N42: нет | O42: Шанина Рушана Асхатовна | P42: Муниципальное бюджетное общеобразовательное учреждение "Гимназия 1" гЧистополь Республика Татарстан
B43: 520001 | C43: Муниципальное бюджетное общеобразовательное учреждение «Гимназия №1» Чистопольского муниципального района Республики Татарстан | D43: Хусаинов | E43: М | F43: нет | G43: 9 | H43: 9 | I43: 17.5 | K43: =SUM(I43:J43) -> 17.5 | L43: 127 | M43: Участник | N43: нет | O43: Шанина Рушана Асхатовна | P43: Муниципальное бюджетное общеобразовательное учреждение "Гимназия 1" гЧистополь Республика Татарстан
B44: 520001 | C44: Муниципальное бюджетное общеобразовательное учреждение «Гимназия №1» Чистопольского муниципального района Республики Татарстан | D44: Русяев | E44: М | F44: нет | G44: 9 | H44: 9 | I44: 17 | K44: =SUM(I44:J44) -> 17 | L44: 127 | M44: Участник | N44: нет | O44: Шанина Рушана Асхатовна | P44: Муниципальное бюджетное общеобразовательное учреждение "Гимназия 1" гЧистополь Республика Татарстан
B45: 520001 | C45: Муниципальное бюджетное общеобразовательное учреждение «Гимназия №1» Чистопольского муниципального района Республики Татарстан | D45: Гайсин | E45: М | F45: нет | G45: 9 | H45: 9 | I45: 17 | K45: =SUM(I45:J45) -> 17 | L45: 127 | M45: Участник | N45: нет | O45: Шанина Рушана Асхатовна | P45: Муниципальное бюджетное общеобразовательное учреждение "Гимназия 1" гЧистополь Республика Татарстан
B46: 520001 | C46: Муниципальное бюджетное общеобразовательное учреждение «Гимназия №1» Чистопольского муниципального района Республики Татарстан | D46: Хузина | E46: Ж | F46: нет | G46: 9 | H46: 9 | I46: 16.5 | K46: =SUM(I46:J46) -> 16.5 | L46: 127 | M46: Участник | N46: нет | O46: Шанина Рушана Асхатовна | P46: Муниципальное бюджетное общеобразовательное учреждение "Гимназия 1" гЧистополь Республика Татарстан
B47: 520001 | C47: Муниципальное бюджетное общеобразовательное учреждение «Гимназия №1» Чистопольского муниципального района Республики Татарстан | D47: Хаматова | E47: Ж | F47: нет | G47: 9 | H47: 9 | I47: 14 | K47: =SUM(I47:J47) -> 14 | L47: 127 | M47: Участник | N47: нет | O47: Шанина Рушана Асхатовна | P47: Муниципальное бюджетное общеобразовательное учреждение "Гимназия 1" гЧистополь Республика Татарстан
B48: 520216 | C48: Муниципальное бюджетное общеобразовательное учреждение «Кутлушкинская основная общеобразовательная школа» Чистопольского муниципального района Республики Татарстан | D48: Нуриманов | E48: М | F48: нет | G48: 9 | H48: 9 | I48: 12 | K48: =SUM(I48:J48) -> 12 | L48: 127 | M48: Участник | N48: нет | O48: Смурыгина Регина Юрьевна | P48: Муниципальное бюджетное общеобразовательное учреждение "Кутлушкинская ООШ" Чистопольского муниципального района Республики Татарстан
B49: 520001 | C49: Муниципальное бюджетное общеобразовательное учреждение «Гимназия №1» Чистопольского муниципального района Республики Татарстан | D49: Сахабутдинов | E49: М | F49: нет | G49: 9 | H49: 9 | I49: 11 | K49: =SUM(I49:J49) -> 11 | L49: 127 | M49: Участник | N49: нет | O49: Шанина Рушана Асхатовна | P49: Муниципальное бюджетное общеобразовательное учреждение "Гимназия 1" гЧистополь Республика Татарстан
B50: 520103 | C50: Муниципальное бюджетное общеобразовательное учреждение «Гимназия №3» Чистопольского муниципального района Республики Татарстан | D50: Мартынов | E50: М | F50: нет | G50: 10 | H50: 10 | I50: 100 | K50: =SUM(I50:J50) -> 100 | L50: 186 | M50: Победитель | N50: нет | O50: Петрова Юлия Николаевна | P50: Муниципальное бюджетное общеобразовательное учреждение "Гимназия №3" Чистопольского муниципального района Республики Татарстан
B51: 520205 | C51: Муниципальное бюджетное общеобразовательное учреждение «Средняя общеобразовательная школа №5» Чистопольского муниципального района Республики Татарстан | D51: Имамиева | E51: Ж | F51: нет | G51: 10 | H51: 10 | I51: 18.5 | K51: =SUM(I51:J51) -> 18.5 | L51: 186 | M51: Участник | N51: нет | O51: Гайфуллин Марат Сагирович | P51: Муниципальное бюджетное общеобразовательное учреждение "СОШ №5"" г.Чистополь Республики Татарстан
B52: 520205 | C52: Муниципальное бюджетное общеобразовательное учреждение «Средняя общеобразовательная школа №5» Чистопольского муниципального района Республики Татарстан | D52: Ахметшин | E52: М | F52: нет | G52: 10 | H52: 10 | I52: 15 | K52: =SUM(I52:J52) -> 15 | L52: 186 | M52: Участник | N52: нет | O52: Гайфуллин Марат Сагирович | P52: Муниципальное бюджетное общеобразовательное учреждение "СОШ №5"" г.Чистополь Республики Татарстан
B53: 520201 | C53: Муниципальное бюджетное общеобразовательное учреждение «Лицей №1» Чистопольского муниципального района Республики Татарстан | D53: Замилов | E53: М | F53: нет | G53: 11 | H53: 11 | I53: 106.5 | K53: =SUM(I53:J53) -> 106.5 | L53: 186 | M53: Победитель | N53: нет | O53: Голицина Наталья Михайловна | P53: Муниципальное бюджетное общеобразовательное учреждение "Лицей №1" г.Чистополь Республики Татарстан
B54: 520101 | C54: Муниципальное бюджетное общеобразовательное учреждение «Средняя общеобразовательная школа №1» Чистопольского муниципального района Республики Татарстан | D54: Сидорова | E54: Ж | F54: нет | G54: 11 | H54: 11 | I54: 95 | K54: =SUM(I54:J54) -> 95 | L54: 186 | M54: Призёр | N54: нет | O54: Валеева Елена Алексеевна | P54: Муниципальное бюджетное общеобразовательное учреждение «Средняя общеобразовательная школа №1» Чистопольского муниципального района Республики Татарстан
B55: 520001 | C55: Муниципальное бюджетное общеобразовательное учреждение «Гимназия №1» Чистопольского муниципального района Республики Татарстан | D55: Буров | E55: М | F55: нет | G55: 11 | H55: 11 | I55: 95 | K55: =SUM(I55:J55) -> 95 | L55: 186 | M55: Призёр | N55: нет | O55: Шанина Рушана Асхатовна | P55: Муниципальное бюджетное общеобразовательное учреждение "Гимназия 1" гЧистополь Республика Татарстан
B56: 520205 | C56: Муниципальное бюджетное общеобразовательное учреждение «Средняя общеобразовательная школа №5» Чистопольского муниципального района Республики Татарстан | D56: Алексеев | E56: М | F56: нет | G56: 11 | H56: 11 | I56: 94.5 | K56: =SUM(I56:J56) -> 94.5 | L56: 186 | M56: Призёр | N56: нет | O56: Гайфуллин Марат Сагирович | P56: Муниципальное бюджетное общеобразовательное учреждение "СОШ №5"" г.Чистополь Республики Татарстан
B57: 520204 | C57: Муниципальное бюджетное общеобразовательное учреждение «Средняя общеобразовательная школа №4» Чистопольского муниципального района Республики Татарстан | D57: Горланов | E57: М | F57: нет | G57: 11 | H57: 11 | I57: 93 | K57: =SUM(I57:J57) -> 93 | L57: 186 | M57: Призёр | N57: нет | O57: Гаврилова Татьяна Леонидовна | P57: Муниципальное бюджетное общеобразовательное учреждение "Средняя общеобразовательная школа №4" Чистопольского муниципального района Республики Татарстан
B58: 520001 | C58: Муниципальное бюджетное общеобразовательное учреждение «Гимназия №1» Чистопольского муниципального района Республики Татарстан | D58: Сальникова | E58: Ж | F58: нет | G58: 11 | H58: 11 | I58: 25.5 | K58: =SUM(I58:J58) -> 25.5 | L58: 186 | M58: Участник | N58: нет | O58: Шанина Рушана Асхатовна | P58: Муниципальное бюджетное общеобразовательное учреждение "Гимназия 1" гЧистополь Республика Татарстан
B59: 520001 | C59: Муниципальное бюджетное общеобразовательное учреждение «Гимназия №1» Чистопольского муниципального района Республики Татарстан | D59: Наумова | E59: Ж | F59: нет | G59: 11 | H59: 11 | I59: 21 | K59: =SUM(I59:J59) -> 21 | L59: 186 | M59: Участник | N59: нет | O59: Шанина Рушана Асхатовна | P59: Муниципальное бюджетное общеобразовательное учреждение "Гимназия 1" гЧистополь Республика Татарстан
B60: 520218 | C60: Муниципальное бюджетное общеобразовательное учреждение «Средняя общеобразовательная школа №16» Чистопольского муниципального района Республики Татарстан | D60: Комарова | E60: Ж | F60: нет | G60: 11 | H60: 11 | I60: 20 | K60: =SUM(I60:J60) -> 20 | L60: 186 | M60: Участник | N60: нет | O60: Соловьева Галина Павловна | P60: Муниципальное бюджетное общеобразовательное учреждение "Средняя общеобразовательная школа № 16" Чистопольского муниципального района Республики Татарстан
B61: 520218 | C61: Муниципальное бюджетное общеобразовательное учреждение «Средняя общеобразовательная школа №16» Чистопольского муниципального района Республики Татарстан | D61: Гаврилова | E61: Ж | F61: нет | G61: 11 | H61: 11 | I61: 19.5 | K61: =SUM(I61:J61) -> 19.5 | L61: 186 | M61: Участник | N61: нет | O61: Соловьева Галина Павловна | P61: Муниципальное бюджетное общеобразовательное учреждение "Средняя общеобразовательная школа № 16" Чистопольского муниципального района Республики Татарстан
B62: 520001 | C62: Муниципальное бюджетное общеобразовательное учреждение «Гимназия №1» Чистопольского муниципального района Республики Татарстан | D62: Буев | E62: М | F62: нет | G62: 11 | H62: 11 | I62: 11 | K62: =SUM(I62:J62) -> 11 | L62: 186 | M62: Участник | N62: нет | O62: Шанина Рушана Асхатовна | P62: Муниципальное бюджетное общеобразовательное учреждение "Гимназия 1" гЧистополь Республика Татарстан
B64: *Согласие на обработку персональных данных получено
